bitfinex/quotes_BTCUSD_20250515
["timestamp","ask_amount","ask_price","bid_price","bid_amount"]
[1747328063720,0.28983369,103790.0,103780.0,0.23573687]
[1747328063901,0.0025704,103790.0,103780.0,0.23573687]
[1747328064046,0.01220449,103790.0,103780.0,0.23573687]
[1747328064748,0.02183868,103790.0,103780.0,0.23573687]
[1747328064936,0.0122044,103790.0,103780.0,0.23573687]
[1747328065134,0.02183858,103790.0,103780.0,0.23573687]
[1747328065348,0.03147286,103790.0,103780.0,0.23573687]
[1747328065553,0.05074188,103790.0,103780.0,0.23573687]
[1747328065753,0.04110723,103790.0,103780.0,0.23573687]
[1747328065964,0.05074188,103790.0,103780.0,0.23573687]
[1747328066201,0.05074179,103790.0,103780.0,0.23573687]
[1747328067267,0.02183858,103790.0,103780.0,0.23573687]
[1747328067411,0.0025704,103790.0,103780.0,0.33304627]
[1747328067599,0.01220458,103790.0,103780.0,0.33304627]
[1747328067804,0.01220458,103790.0,103780.0,0.33971895]
[1747328068009,0.02183868,103790.0,103780.0,0.33971895]
[1747328068972,0.02183868,103790.0,103780.0,0.33304627]
[1747328069846,0.04110779,103790.0,103780.0,0.33304627]
[1747328070042,0.26600458,103790.0,103780.0,0.22610185]
[1747328070257,0.26600458,103790.0,103780.0,0.23573706]
[1747328070456,0.27563941,103790.0,103780.0,0.23573706]
[1747328071175,0.60986639,103790.0,103780.0,0.20683116]
[1747328071374,0.62319811,103790.0,103780.0,0.00448014]
[1747328071580,0.61356365,103790.0,103780.0,0.00448014]
[1747328072073,0.61356365,103790.0,103780.0,0.00248014]
[1747328072270,0.62186009,103790.0,103780.0,0.00248014]
[1747328072959,0.62186009,103790.0,103780.0,0.00048014]
[1747328073110,0.61356365,103790.0,103780.0,0.00048014]
[1747328073303,0.61456365,103790.0,103780.0,0.00048014]
[1747328074055,0.61556365,103790.0,103780.0,0.00048014]
[1747328076219,0.86700365,103790.0,103780.0,0.00048014]
[1747328076415,0.87515074,103790.0,103780.0,0.00048014]
[1747328077852,0.54092376,103790.0,103780.0,0.00048014]
[1747328078053,0.87515074,103790.0,103780.0,0.00048014]
[1747328080068,0.87515074,103790.0,103780.0,0.20283125]
[1747328080242,0.87515074,103790.0,103780.0,0.21246692]
[1747328080458,0.05455186,103790.0,103780.0,0.23173742]
[1747328080658,0.48367785,103790.0,103780.0,0.23173742]
[1747328080869,0.50258677,103790.0,103780.0,0.23173742]
[1747328081013,0.50258677,103790.0,103780.0,0.23173761]
[1747328081439,0.49195268,103790.0,103780.0,0.22210231]
[1747328081653,0.49095268,103790.0,103780.0,0.22210231]
[1747328082255,0.52155268,103790.0,103780.0,0.20283125]
[1747328082479,0.52155268,103790.0,103780.0,0.00048014]
[1747328082480,0.86941083,103790.0,103780.0,0.00048014]
[1747328083182,0.28618385,103790.0,103780.0,0.00048014]
[1747328083395,0.22268357,103790.0,103780.0,0.21246683]
[1747328083601,0.22268357,103790.0,103780.0,0.22210222]
[1747328083808,0.22268357,103790.0,103780.0,0.21246683]
[1747328084010,0.47388357,103790.0,103780.0,0.23173752]
[1747328084180,0.48351831,103790.0,103780.0,0.22210231]
[1747328085117,0.28118613,103790.0,103780.0,0.23173752]
[1747328085249,0.30045552,103790.0,103780.0,0.24137263]
[1747328085445,0.01071749,103790.0,103780.0,0.27227263]
[1747328085669,0.02998604,103790.0,103780.0,0.30227263]
[1747328085877,0.0396206,103790.0,103780.0,0.30895619]
[1747328086304,0.02998604,103790.0,103780.0,0.30895619]
[1747328086526,0.02035167,103790.0,103780.0,0.30895619]
[1747328086752,0.02998604,103790.0,103780.0,0.30895619]
[1747328087095,0.0396206,103790.0,103780.0,0.30895619]
[1747328087462,0.0396205,103790.0,103780.0,0.30895619]
[1747328087969,0.01071749,103790.0,103780.0,0.40626559]
[1747328088941,0.02183904,103790.0,103780.0,0.24805619]
[1747328089137,0.03147351,103790.0,103780.0,0.24805619]
[1747328089687,0.0025704,103790.0,103780.0,0.40746559]
[1747328091173,0.0025704,103790.0,103780.0,0.41146559]
[1747328097187,0.0025704,103790.0,103780.0,0.40478203]
[1747328097592,0.0025704,103790.0,103780.0,0.74478203]
[1747328097803,5.24726445,103800.0,103790.0,0.63874102]
[1747328097987,5.24726445,103800.0,103790.0,0.73605042]
[1747328098120,5.24726445,103800.0,103790.0,1.00189042]
[1747328098562,5.24726445,103800.0,103790.0,1.00856286]
[1747328098977,5.24726445,103800.0,103790.0,1.01256286]
[1747328100169,5.24726445,103800.0,103790.0,1.01556286]
[1747328100944,5.24726445,103800.0,103790.0,0.74972286]
[1747328101075,5.24726445,103800.0,103790.0,0.36388201]
[1747328101528,5.24726445,103800.0,103790.0,0.70388201]
[1747328101869,5.24726445,103800.0,103790.0,0.67258201]
[1747328101870,5.28046445,103800.0,103790.0,0.67258201]
[1747328102066,5.24726445,103800.0,103790.0,0.81432813]
[1747328102417,5.24726445,103800.0,103790.0,1.07036595]
[1747328102568,5.24726445,103800.0,103790.0,0.73638201]
[1747328103870,5.24726445,103800.0,103790.0,1.07036595]
[1747328106651,5.24726445,103800.0,103790.0,0.73638201]
[1747328106873,5.24726445,103800.0,103790.0,1.07036595]
[1747328108418,5.24726445,103800.0,103790.0,0.73638201]
[1747328108639,5.24726445,103800.0,103790.0,1.07036595]
[1747328111911,5.24726445,103800.0,103790.0,0.73638201]
[1747328112129,5.24726445,103800.0,103790.0,1.07036595]
[1747328112366,5.24726445,103800.0,103790.0,0.73638201]
[1747328112546,5.24726445,103800.0,103790.0,1.07036595]
[1747328113297,5.24726445,103800.0,103790.0,0.73638201]
[1747328113476,5.24726445,103800.0,103790.0,0.67258201]
[1747328113691,5.26653105,103800.0,103790.0,0.33258201]
[1747328113899,5.29893096,103800.0,103790.0,0.33258201]
[1747328114110,5.28929761,103800.0,103790.0,0.33258201]
[1747328114283,5.27966445,103800.0,103790.0,0.33258201]
[1747328114470,5.27966445,103800.0,103790.0,0.32258201]
[1747328115777,5.32129761,103800.0,103790.0,0.22527261]
[1747328116546,5.28929761,103800.0,103790.0,0.22527261]
[1747328116747,5.27966445,103800.0,103790.0,0.22527261]
[1747328116948,5.28929752,103800.0,103790.0,0.22527261]
[1747328117268,5.27966445,103800.0,103790.0,0.22527261]
[1747328118246,5.33083087,103800.0,103790.0,0.20636923]
[1747328118462,5.33083087,103800.0,103790.0,0.22563853]
[1747328118463,5.88535584,103800.0,103790.0,0.22563853]
[1747328118661,5.88535584,103800.0,103790.0,0.21896618]
[1747328118662,5.87572249,103800.0,103790.0,0.21896618]
[1747328118964,5.87572249,103800.0,103790.0,0.22860064]
[1747328119195,5.54173855,103800.0,103790.0,0.22860064]
[1747328119401,5.54173855,103800.0,103790.0,0.23423501]
[1747328119604,5.33942596,103800.0,103790.0,0.24086929]
[1747328119752,5.35869331,103800.0,103790.0,0.24486864]
[1747328119933,5.36832712,103800.0,103790.0,0.23523446]
[1747328120133,5.55137218,103800.0,103790.0,0.22260018]
[1747328120327,5.55137218,103800.0,103790.0,0.23223446]
[1747328120529,5.55137218,103800.0,103790.0,0.23323446]
[1747328121630,5.33942596,103800.0,103790.0,0.24286864]
[1747328122044,5.34905968,103800.0,103790.0,0.24286864]
[1747328122284,5.33942596,103800.0,103790.0,0.24286864]
[1747328122477,5.34905968,103800.0,103790.0,0.24953351]
[1747328122599,5.55137171,103800.0,103790.0,0.24953351]
[1747328123019,5.34905968,103800.0,103790.0,0.24953351]
[1747328123474,5.34905968,103800.0,103790.0,0.24286864]
[1747328123923,5.34046477,103800.0,103790.0,0.24286864]
[1747328124239,5.28929761,103800.0,103790.0,0.24286864]
[1747328124439,5.30856441,103800.0,103790.0,0.24286864]
[1747328124637,5.30856431,103800.0,103790.0,0.24286864]
[1747328124850,5.31819794,103800.0,103790.0,0.24286864]
[1747328126168,5.32678022,103800.0,103790.0,0.24953615]
[1747328126593,5.33641394,103800.0,103790.0,0.24953615]
[1747328127019,5.33641394,103800.0,103790.0,0.24286864]
[1747328129693,5.52909281,103800.0,103790.0,0.20136448]
[1747328129894,5.53079267,103800.0,103790.0,0.00866769]
[1747328130105,5.53079267,103800.0,103790.0,0.21099922]
[1747328130306,5.53079267,103800.0,103790.0,0.22063387]
[1747328130741,5.53079267,103800.0,103790.0,0.00866769]
[1747328130935,5.53079267,103800.0,103790.0,0.002]
[1747328131503,5.53079267,103800.0,103790.0,0.19469679]
[1747328131720,5.53079267,103800.0,103790.0,0.20433162]
[1747328132271,5.53079267,103800.0,103790.0,0.21396636]
[1747328132790,5.52115886,103800.0,103790.0,0.002]
[1747328132998,5.8551428,103800.0,103790.0,0.002]
[1747328133210,6.2924522,103800.0,103790.0,0.002]
[1747328133380,6.62643614,103800.0,103790.0,0.002]
[1747328133581,6.2924522,103800.0,103790.0,0.002]
[1747328134345,6.62643614,103800.0,103790.0,0.002]
[1747328134547,6.2924522,103800.0,103790.0,0.002]
[1747328134755,6.73828639,103800.0,103790.0,0.001]
[1747328135181,0.54233144,103790.0,103780.0,0.00048014]
[1747328135433,0.99432084,103790.0,103780.0,0.00048014]
[1747328135560,1.32830478,103790.0,103780.0,0.00048014]
[1747328135770,1.03582478,103790.0,103780.0,0.00048014]
[1747328135971,1.61826478,103790.0,103780.0,0.00048014]
[1747328136617,1.62026478,103790.0,103780.0,0.00048014]
[1747328137003,1.61922478,103790.0,103780.0,0.00048014]
[1747328137841,2.31242478,103790.0,103780.0,0.00048014]
[1747328138140,2.47267503,103790.0,103780.0,0.00048014]
[1747328138343,2.37536563,103790.0,103780.0,0.00048014]
[1747328138692,2.32696563,103790.0,103780.0,0.00048014]
[1747328139200,2.33696563,103790.0,103780.0,0.00048014]
[1747328139368,2.34696563,103790.0,103780.0,0.00048014]
[1747328139569,1.75107503,103790.0,103780.0,0.00048014]
[1747328139772,1.74107503,103790.0,103780.0,0.00048014]
[1747328140081,7.11605897,103790.0,103780.0,0.00048014]
[1747328140284,6.78207503,103790.0,103780.0,0.00048014]
[1747328140793,6.78007503,103790.0,103780.0,0.00048014]
[1747328140936,7.11405897,103790.0,103780.0,0.00048014]
[1747328141137,0.63944752,103770.0,103760.0,0.002]
[1747328141339,1.07074086,103770.0,103760.0,0.002481]
[1747328142213,1.07174086,103770.0,103760.0,0.002481]
[1747328142417,1.07374086,103770.0,103760.0,0.002481]
[1747328143674,1.4077248,103770.0,103760.0,0.002481]
[1747328143835,1.4794693,103770.0,103760.0,0.002481]
[1747328144945,1.4077248,103770.0,103760.0,0.002481]
[1747328145154,1.07318596,103770.0,103760.0,0.002481]
[1747328145357,1.64234086,103770.0,103760.0,0.002481]
[1747328146080,1.62732001,103770.0,103760.0,0.002481]
[1747328146435,1.63732001,103770.0,103760.0,0.002481]
[1747328146637,0.71521607,103770.0,103760.0,0.002481]
[1747328146873,0.81748667,103770.0,103760.0,0.1952335]
[1747328147120,0.20537044,103770.0,103760.0,0.1952335]
[1747328147297,0.48973044,103770.0,103760.0,0.20487112]
[1747328147489,0.84517787,103770.0,103760.0,0.002481]
[1747328147697,0.97278727,103770.0,103760.0,0.002481]
[1747328151224,0.63880333,103770.0,103760.0,0.002481]
[1747328151447,0.97278727,103770.0,103760.0,0.002481]
[1747328153855,1.64677121,103770.0,103760.0,0.002481]
[1747328154056,1.66131206,103770.0,103760.0,0.002481]
[1747328154947,1.67131206,103770.0,103760.0,0.002481]
[1747328155361,0.63304333,103770.0,103760.0,0.002481]
[1747328155576,0.63304333,103770.0,103760.0,0.20487112]
[1747328155577,0.53573393,103770.0,103760.0,0.20487112]
[1747328155793,0.82857393,103770.0,103760.0,0.20487112]
[1747328155964,0.82857393,103770.0,103760.0,0.002481]
[1747328156199,1.19343787,103770.0,103760.0,0.002481]
[1747328156907,1.22483787,103770.0,103760.0,0.002481]
[1747328158378,1.32214727,103770.0,103760.0,0.002481]
[1747328160989,1.02862727,103770.0,103760.0,0.002481]
[1747328161193,1.61010727,103770.0,103760.0,0.002481]
[1747328161995,2.05594146,103770.0,103760.0,0.002481]
[1747328162222,1.97863206,103770.0,103760.0,0.002481]
[1747328162441,1.97755206,103770.0,103760.0,0.002481]
[1747328166063,1.62356812,103770.0,103760.0,0.002481]
[1747328166460,0.99722727,103770.0,103760.0,0.002481]
[1747328166657,1.56702727,103770.0,103760.0,0.002481]
[1747328166995,1.57702727,103770.0,103760.0,0.002481]
[1747328167206,1.67433667,103770.0,103760.0,0.002481]
[1747328167402,1.56702727,103770.0,103760.0,0.002481]
[1747328167605,1.23304333,103770.0,103760.0,0.002481]
[1747328167813,1.56702727,103770.0,103760.0,0.002481]
[1747328168860,0.96702727,103770.0,103760.0,0.002481]
[1747328169033,1.20108333,103770.0,103760.0,0.034981]
[1747328169395,1.20108333,103770.0,103760.0,0.002481]
[1747328170257,1.23278333,103770.0,103760.0,0.002481]
[1747328170398,1.59736727,103770.0,103760.0,0.002481]
[1747328170745,0.99872727,103770.0,103760.0,0.002481]
[1747328170969,1.56536727,103770.0,103760.0,0.002481]
[1747328172113,1.23138333,103770.0,103760.0,0.002481]
[1747328172427,1.56536727,103770.0,103760.0,0.002481]
[1747328173527,1.56352727,103770.0,103760.0,0.002481]
[1747328176279,1.19784333,103770.0,103760.0,0.002481]
[1747328176478,1.53182727,103770.0,103760.0,0.002481]
[1747328176678,0.91792333,103770.0,103760.0,0.002481]
[1747328176985,1.09801393,103770.0,103760.0,0.065781]
[1747328177163,0.20537044,103770.0,103760.0,0.28744552]
[1747328177364,0.21500667,103770.0,103760.0,0.28744571]
[1747328177587,0.21500667,103770.0,103760.0,0.27780846]
[1747328177720,0.21300667,103770.0,103760.0,0.27780846]
[1747328178213,0.21200667,103770.0,103760.0,0.27780846]
[1747328179330,0.21200667,103770.0,103760.0,0.29413769]
[1747328179530,0.21200667,103770.0,103760.0,0.28450044]
[1747328180154,0.21200667,103770.0,103760.0,0.29413769]
[1747328180944,0.21200667,103770.0,103760.0,0.28450044]
[1747328181270,0.00963595,103770.0,103760.0,0.24047448]
[1747328181468,0.90520312,103780.0,103770.0,0.21200703]
[1747328181774,0.90518641,103780.0,103770.0,0.21200703]
[1747328181986,0.90518641,103780.0,103770.0,0.29487939]
[1747328182275,0.90518641,103780.0,103770.0,0.28524373]
[1747328182454,0.9133392,103780.0,103770.0,0.28524373]
[1747328182950,0.9133392,103780.0,103770.0,0.29487996]
[1747328183150,0.70135279,103780.0,103770.0,0.30451609]
[1747328183360,0.7221058,103780.0,103770.0,0.30451544]
[1747328183791,0.70283511,103780.0,103770.0,0.30451544]
[1747328183966,0.71247041,103780.0,103770.0,0.30451544]
[1747328184386,0.71247041,103780.0,103770.0,0.31119697]
[1747328184586,0.72210599,103780.0,103770.0,0.29192489]
[1747328184834,0.72210599,103780.0,103770.0,0.30156093]
[1747328184965,0.71247041,103780.0,103770.0,0.30156093]
[1747328185169,0.72210589,103780.0,103770.0,0.30156093]
[1747328185367,0.92445691,103780.0,103770.0,0.30156093]
[1747328185707,0.93409267,103780.0,103770.0,0.30156093]
[1747328186091,0.74137732,103780.0,103770.0,0.30156093]
[1747328187221,0.92445756,103780.0,103770.0,0.29192489]
[1747328187415,0.92445756,103780.0,103770.0,0.31119725]
[1747328187794,0.92445756,103780.0,103770.0,0.29487959]
[1747328187990,0.92445756,103780.0,103770.0,0.0328]
[1747328187991,1.23917072,103780.0,103770.0,0.0328]
[1747328188816,0.90518678,103780.0,103770.0,0.0328]
[1747328189994,0.90518678,103780.0,103770.0,0.22553393]
[1747328190114,0.90518678,103780.0,103770.0,0.23517044]
[1747328190326,0.90518678,103780.0,103770.0,0.27630667]
[1747328190566,0.90518678,103780.0,103770.0,0.26667044]
[1747328190721,0.88591535,103780.0,103770.0,0.22553393]
[1747328190926,0.88591535,103780.0,103770.0,0.23517062]
[1747328191832,0.88591535,103780.0,103770.0,0.24480722]
[1747328192035,0.6932,103780.0,103770.0,0.68863728]
[1747328192235,0.6932,103780.0,103770.0,0.3739257]
[1747328192445,5.94936459,103800.0,103790.0,0.28390064]
[1747328192747,5.96863213,103800.0,103790.0,0.29353501]
[1747328192947,5.94936441,103800.0,103790.0,0.30316929]
[1747328193146,5.93009771,103800.0,103790.0,0.30316864]
[1747328193464,5.92046445,103800.0,103790.0,0.30316864]
[1747328194129,5.93009761,103800.0,103790.0,0.30316864]
[1747328194652,5.92046445,103800.0,103790.0,0.30316864]
[1747328194828,5.93009752,103800.0,103790.0,0.30516864]
[1747328194976,5.92046445,103800.0,103790.0,0.30516864]
[1747328195183,5.92046445,103800.0,103790.0,0.31183434]
[1747328196019,5.92046445,103800.0,103790.0,0.31383434]
[1747328201266,5.92046445,103800.0,103790.0,0.30716864]
[1747328203149,5.92046445,103800.0,103790.0,0.31382276]
[1747328206227,5.22726445,103800.0,103790.0,0.7451161]
[1747328206902,5.22726445,103800.0,103790.0,0.41113216]
[1747328208699,5.22726445,103800.0,103790.0,0.42080022]
[1747328216432,5.22726445,103800.0,103790.0,0.75478416]
[1747328216765,5.22726445,103800.0,103790.0,0.42080022]
[1747328218655,5.22726445,103800.0,103790.0,0.75478416]
[1747328218791,5.22726445,103800.0,103790.0,0.42080022]
[1747328220257,5.22726445,103800.0,103790.0,1.17273028]
[1747328220585,5.22726445,103800.0,103790.0,1.09478416]
[1747328222019,5.22726445,103800.0,103790.0,1.62383595]
[1747328222220,5.22726445,103800.0,103790.0,1.44330895]
[1747328222452,5.22726445,103800.0,103790.0,1.10932501]
[1747328222669,5.22726445,103800.0,103790.0,1.67116501]
[1747328222880,5.22726445,103800.0,103790.0,0.75880022]
[1747328223091,5.22726445,103800.0,103790.0,1.09078416]
[1747328223305,5.22726445,103800.0,103790.0,1.09678416]
[1747328225935,5.22726445,103800.0,103790.0,0.76280022]
[1747328226139,5.22726445,103800.0,103790.0,1.09678416]
[1747328226542,5.22726445,103800.0,103790.0,0.73090022]
[1747328226788,5.23689761,103800.0,103790.0,0.70050022]
[1747328226986,5.23689752,103800.0,103790.0,0.70050022]
[1747328227533,5.26829752,103800.0,103790.0,0.70050022]
[1747328227723,5.23689752,103800.0,103790.0,0.70050022]
[1747328227941,5.24653078,103800.0,103790.0,0.70050022]
[1747328228094,5.24653078,103800.0,103790.0,0.60319082]
[1747328228301,5.28686422,103800.0,103790.0,0.60319082]
[1747328228905,5.28686422,103800.0,103790.0,0.60019082]
[1747328229104,5.28686422,103800.0,103790.0,0.59719082]
[1747328229303,5.28686422,103800.0,103790.0,0.60319082]
[1747328229505,5.29649794,103800.0,103790.0,0.26319082]
[1747328229710,5.29649794,103800.0,103790.0,0.22161993]
[1747328229711,5.48917616,103800.0,103790.0,0.22161993]
[1747328229908,5.83559377,103800.0,103790.0,0.00965412]
[1747328230109,6.11319377,103800.0,103790.0,0.00965412]
[1747328230345,6.21050317,103800.0,103790.0,0.00965412]
[1747328230555,6.11319377,103800.0,103790.0,0.01165412]
[1747328231085,6.11319377,103800.0,103790.0,0.002]
[1747328231421,6.11319377,103800.0,103790.0,0.003]
[1747328231644,6.11319377,103800.0,103790.0,0.002]
[1747328231909,0.26343107,103790.0,103780.0,0.2216207]
[1747328232468,0.26343107,103790.0,103780.0,0.20235001]
[1747328232644,0.0403353,103780.0,103770.0,0.22189565]
[1747328233050,0.04033521,103780.0,103770.0,0.22856117]
[1747328233872,0.04997051,103780.0,103770.0,0.22856117]
[1747328234525,0.06924176,103780.0,103770.0,0.22956117]
[1747328234727,0.06924102,103780.0,103770.0,0.22956117]
[1747328234875,0.06924092,103780.0,103770.0,0.22956117]
[1747328235257,0.05960599,103780.0,103770.0,0.23156117]
[1747328235703,0.04997051,103780.0,103770.0,0.24119777]
[1747328235904,0.0596059,103780.0,103770.0,0.24119777]
[1747328236355,0.06924148,103780.0,103770.0,0.24119777]
[1747328236553,0.63637699,103780.0,103770.0,0.22167219]
[1747328236783,0.60747072,103780.0,103770.0,0.21203605]
[1747328236918,0.60747072,103780.0,103770.0,0.23130897]
[1747328237118,0.60747072,103780.0,103770.0,0.00966552]
[1747328237347,0.60747072,103780.0,103770.0,0.003]
[1747328237546,0.59783505,103780.0,103770.0,0.003]
[1747328238663,0.59783505,103780.0,103770.0,0.001]
[1747328238885,0.28704326,103770.0,103760.0,0.22279902]
[1747328239077,0.28704326,103770.0,103760.0,0.25171085]
[1747328239300,0.28704326,103770.0,103760.0,0.26134782]
[1747328239443,0.28704326,103770.0,103760.0,0.25171104]
[1747328239644,0.29667995,103770.0,103760.0,0.23243645]
[1747328239845,0.29667995,103770.0,103760.0,0.25171086]
[1747328240518,0.29667995,103770.0,103760.0,0.26134792]
[1747328240717,0.29667995,103770.0,103760.0,0.26234792]
[1747328241099,0.29667995,103770.0,103760.0,0.26434792]
[1747328241293,0.29667995,103770.0,103760.0,0.26434727]
[1747328241500,0.08467273,103770.0,103760.0,0.25471011]
[1747328241750,0.09430924,103770.0,103760.0,0.25471011]
[1747328241962,0.09430924,103770.0,103760.0,0.26453351]
[1747328242117,0.27371646,103770.0,103760.0,0.25489664]
[1747328242323,0.27371646,103770.0,103760.0,0.27417067]
[1747328243126,0.07134584,103770.0,103760.0,0.27417067]
[1747328243988,0.06170924,103770.0,103760.0,0.27417067]
[1747328244213,0.07134584,103770.0,103760.0,0.27417067]
[1747328244666,0.26407977,103770.0,103760.0,0.25489664]
[1747328244891,0.07134584,103770.0,103760.0,0.26453361]
[1747328247305,0.10454584,103770.0,103760.0,0.24507324]
[1747328247564,0.88075098,103770.0,103760.0,0.0234089]
[1747328247984,0.54676704,103770.0,103760.0,0.0234089]
[1747328248173,0.88075098,103770.0,103760.0,0.0234089]
[1747328248406,0.88075098,103770.0,103760.0,0.2161614]
[1747328248609,0.54676704,103770.0,103760.0,0.22579902]
[1747328248808,0.54676704,103770.0,103760.0,0.23543655]
[1747328249563,0.53713053,103770.0,103760.0,0.22579902]
[1747328249760,0.87111447,103770.0,103760.0,0.23543655]
[1747328250638,0.0328,103770.0,103760.0,0.24507389]
[1747328250783,0.53895204,103780.0,103770.0,0.21200685]
[1747328250985,0.52931766,103780.0,103770.0,0.22164308]
[1747328251614,0.51968236,103780.0,103770.0,0.22164308]
[1747328251791,0.54164678,103780.0,103770.0,0.20237053]
[1747328251990,0.24360685,103770.0,103760.0,0.23343599]
[1747328252222,0.0632,103770.0,103760.0,0.22379883]
[1747328252457,0.0632,103770.0,103760.0,0.24207333]
[1747328252684,0.0632,103770.0,103760.0,0.2517103]
[1747328253161,0.0632,103770.0,103760.0,0.25171058]
[1747328253376,0.0632,103770.0,103760.0,0.26234764]
[1747328253618,0.42609253,103770.0,103760.0,0.26234764]
[1747328253853,0.41645612,103770.0,103760.0,0.26234764]
[1747328254057,0.42609253,103770.0,103760.0,0.26434764]
[1747328254360,0.42609253,103770.0,103760.0,0.25471058]
[1747328254616,0.60919005,103770.0,103760.0,0.0234089]
[1747328254843,0.6188272,103770.0,103760.0,0.23543636]
[1747328255091,0.6188272,103770.0,103760.0,0.0234089]
[1747328255336,0.60919097,103770.0,103760.0,0.0234089]
[1747328256066,0.70650037,103770.0,103760.0,0.0234089]
[1747328257145,0.37251643,103770.0,103760.0,0.0234089]
[1747328257319,0.70650037,103770.0,103760.0,0.0234089]
[1747328259007,0.37251643,103770.0,103760.0,0.0234089]
[1747328259218,0.27520703,103770.0,103760.0,0.22579893]
[1747328259423,0.01927199,103770.0,103760.0,0.27607315]
[1747328259632,0.03854473,103770.0,103760.0,0.27607315]
[1747328259830,0.49319866,103770.0,103760.0,0.24210713]
[1747328260031,0.49319866,103770.0,103760.0,0.25174429]
[1747328260701,0.5151628,103770.0,103760.0,0.2450737]
[1747328261054,0.5151628,103770.0,103760.0,0.25471095]
[1747328261892,0.5151628,103770.0,103760.0,0.2450737]
[1747328262058,0.50552667,103770.0,103760.0,0.2450737]
[1747328262261,0.50552667,103770.0,103760.0,0.25471095]
[1747328263478,0.47332667,103770.0,103760.0,0.27102278]
[1747328263708,0.29022934,103770.0,103760.0,0.27102278]
[1747328263953,0.29022869,103770.0,103760.0,0.27102278]
[1747328264191,0.29022869,103770.0,103760.0,0.30372278]
[1747328264428,1.24223266,103780.0,103770.0,0.20237044]
[1747328264659,1.46055727,103780.0,103770.0,0.19273393]
[1747328264882,1.46055727,103780.0,103770.0,0.20237062]
[1747328265113,1.46055727,103780.0,103770.0,0.21200703]
[1747328265570,1.16383727,103780.0,103770.0,0.21200703]
[1747328265804,1.1542016,103780.0,103770.0,0.21200703]
[1747328266222,1.1542016,103780.0,103770.0,0.21200722]
[1747328266631,1.15347083,103780.0,103770.0,0.23127976]
[1747328266847,1.15347083,103780.0,103770.0,0.22164363]
[1747328267069,1.17693535,103780.0,103770.0,0.21868565]
[1747328267693,1.17693535,103780.0,103770.0,0.20904905]
[1747328267908,1.17693535,103780.0,103770.0,0.22832216]
[1747328268327,1.17693535,103780.0,103770.0,0.23795857]
[1747328268928,1.17693535,103780.0,103770.0,0.23128014]
[1747328271788,1.17693535,103780.0,103770.0,0.21200722]
[1747328272054,1.17693535,103780.0,103770.0,0.22164373]
[1747328272384,1.51091929,103780.0,103770.0,0.22164373]
[1747328272609,1.17693535,103780.0,103770.0,0.22164373]
[1747328272826,0.91901535,103780.0,103770.0,0.22164373]
[1747328273064,1.17321535,103780.0,103770.0,0.22164373]
[1747328274041,1.17321535,103780.0,103770.0,0.23128014]
[1747328275196,1.17321535,103780.0,103770.0,0.24091646]
[1747328276262,1.17321535,103780.0,103770.0,0.21200722]
[1747328276475,0.00963651,103770.0,103760.0,0.23243562]
[1747328276700,0.5869273,103770.0,103760.0,0.22279893]
[1747328276880,0.26258005,103770.0,103760.0,0.2487551]
[1747328277134,0.26258005,103770.0,103760.0,0.24875528]
[1747328277349,0.26258005,103770.0,103760.0,0.25839234]
[1747328277767,0.25294373,103770.0,103760.0,0.22948051]
[1747328277983,0.28564373,103770.0,103760.0,0.24111785]
[1747328280304,0.26637062,103770.0,103760.0,0.23248051]
[1747328280508,0.23367062,103770.0,103760.0,0.24211794]
[1747328281046,0.22403393,103770.0,103760.0,0.22284298]
[1747328281383,0.22403393,103770.0,103760.0,0.2324806]
[1747328281620,0.22403393,103770.0,103760.0,0.24211813]
[1747328282011,0.20237053,103770.0,103760.0,0.27102978]
[1747328282227,0.22164354,103770.0,103760.0,0.29229281]
[1747328282372,0.01927236,103770.0,103760.0,0.30192997]
[1747328282582,1.15442659,103780.0,103770.0,0.21200685]
[1747328282834,0.90518659,103780.0,103770.0,0.21200685]
[1747328283062,1.15426659,103780.0,103770.0,0.22164317]
[1747328283284,1.15426659,103780.0,103770.0,0.25454317]
[1747328283485,1.15394659,103780.0,103770.0,0.2641794]
[1747328284656,1.15394659,103780.0,103770.0,0.2312794]
[1747328285903,1.15394659,103780.0,103770.0,0.21200685]
[1747328286307,1.15394659,103780.0,103770.0,0.20237044]
[1747328286507,1.17541111,103780.0,103770.0,0.20237044]
[1747328286941,1.17541111,103780.0,103770.0,0.20904866]
[1747328288906,1.17541111,103780.0,103770.0,0.20237044]
[1747328289119,1.17541111,103780.0,103770.0,0.21200685]
[1747328290034,1.17541111,103780.0,103770.0,0.20237044]
[1747328290214,1.17541111,103780.0,103770.0,0.21200685]
[1747328291106,1.17541111,103780.0,103770.0,0.21868896]
[1747328292758,1.16577535,103780.0,103770.0,0.20905255]
[1747328294257,1.53065929,103780.0,103770.0,0.00668211]
[1747328294476,1.62796869,103780.0,103770.0,0.00668211]
[1747328295262,0.23367044,103770.0,103760.0,0.22279836]
[1747328295464,0.59825438,103770.0,103760.0,0.22279836]
[1747328295819,0.26427044,103770.0,103760.0,0.02709273]
[1747328296834,0.26427044,103770.0,103760.0,0.21984523]
[1747328297048,0.58861787,103770.0,103760.0,0.02709273]
[1747328297607,0.58861787,103770.0,103760.0,0.0204089]
[1747328297813,0.68592727,103770.0,103760.0,0.0204089]
[1747328298899,0.93436727,103770.0,103760.0,0.0204089]
[1747328299103,1.27436727,103770.0,103760.0,0.0204089]
[1747328300285,0.94038333,103770.0,103760.0,0.0204089]
[1747328300522,1.27436727,103770.0,103760.0,0.0204089]
[1747328301285,1.62289206,103770.0,103760.0,0.0204089]
[1747328302702,1.62489206,103770.0,103760.0,0.0204089]
[1747328303495,1.63489206,103770.0,103760.0,0.0204089]
[1747328303904,1.66382706,103770.0,103760.0,0.0204089]
[1747328304655,1.67382706,103770.0,103760.0,0.0204089]
[1747328305029,1.77113646,103770.0,103760.0,0.0204089]
[1747328305434,1.76913646,103770.0,103760.0,0.0204089]
[1747328305707,1.77213646,103770.0,103760.0,0.0204089]
[1747328306232,1.00685918,103770.0,103760.0,0.0204089]
[1747328306436,1.34284312,103770.0,103760.0,0.0204089]
[1747328306649,1.07440312,103770.0,103760.0,0.0204089]
[1747328307063,1.55472312,103770.0,103760.0,0.0204089]
[1747328307224,1.20603833,103770.0,103760.0,0.0204089]
[1747328307430,0.80650333,103770.0,103760.0,0.2131614]
[1747328307627,0.32634333,103770.0,103760.0,0.2131614]
[1747328307830,1.48072727,103770.0,103760.0,0.0204089]
[1747328308405,1.44942727,103770.0,103760.0,0.22279883]
[1747328308569,1.01813393,103770.0,103760.0,0.25389883]
[1747328309573,1.01797393,103770.0,103760.0,0.25389883]
[1747328310195,1.01297393,103770.0,103760.0,0.25389883]
[1747328310398,0.77153393,103770.0,103760.0,0.25389883]
[1747328310592,0.77353393,103770.0,103760.0,0.25389883]
[1747328310816,1.10751787,103770.0,103760.0,0.25389883]
[1747328311130,1.10751787,103770.0,103760.0,0.26353655]
[1747328312018,1.10751787,103770.0,103760.0,0.27317398]
[1747328312372,1.10759787,103770.0,103760.0,0.27317398]
[1747328312751,0.60015292,103770.0,103760.0,0.32254838]
[1747328312878,0.2696284,103770.0,103760.0,0.32254773]